bitfinex/quotes_ETHUSD_20251218
["timestamp","ask_amount","ask_price","bid_price","bid_amount"]
[1766069202631,0.576,2945.3,2944.3,3.5609]
[1766069202782,0.002,2945.9,2944.0,0.644]
[1766069202783,0.578,2945.9,2944.6,5.6771]
[1766069203217,0.578,2945.9,2944.7,3.39593167]
[1766069203381,0.002,2945.9,2944.8,6.2531]
[1766069203578,0.002,2945.9,2944.9,3.5609]
[1766069203780,0.002,2946.0,2945.1,3.5609]
[1766069204024,0.002,2946.0,2944.9,0.62531]
[1766069204025,0.002,2946.4,2945.5,3.5609]
[1766069204181,0.002,2946.4,2945.4,2.1162]
[1766069204182,0.002,2946.4,2945.3,0.576]
[1766069204538,0.002,2946.4,2945.0,5.6771]
[1766069204834,0.002,2946.4,2945.3,5.6771]
[1766069204984,0.002,2946.4,2944.7,2.58058023]
[1766069205186,0.002,2946.4,2945.1,3.5609]
[1766069205386,0.002,2946.4,2945.7,3.5609]
[1766069205698,0.002,2946.4,2945.8,3.5609]
[1766069205916,0.002,2946.4,2945.9,3.5609]
[1766069206088,0.002,2946.9,2946.4,2.1162]
[1766069206286,0.002,2947.4,2946.5,0.576]
[1766069206531,0.002,2948.1,2946.6,2.1162]
[1766069206837,0.002,2948.1,2946.5,0.576]
[1766069206838,0.002,2948.1,2946.5,2.1162]
[1766069207029,3.39238509,2947.8,2946.5,5.6771]
[1766069207229,0.34143851,2947.6,2946.5,5.6771]
[1766069207520,0.34143851,2947.6,2946.9,3.5609]
[1766069207521,0.002,2947.6,2946.9,3.5609]
[1766069207740,0.002,2947.6,2947.0,5.6771]
[1766069208018,0.002,2947.6,2947.1,3.5609]
[1766069208236,0.002,2947.6,2945.8,0.41369]
[1766069208237,6.7872167,2947.6,2945.9,5.6771]
[1766069208437,0.73632167,2947.5,2946.1,2.1162]
[1766069208648,0.002,2947.6,2946.6,3.5609]
[1766069208811,0.002,2947.6,2946.8,3.5609]
[1766069209016,0.002,2948.1,2946.8,3.5609]
[1766069209321,0.002,2948.1,2947.0,3.5609]
[1766069209631,0.002,2948.8,2947.2,4.02528023]
[1766069209836,0.002,2949.3,2947.7,3.5609]
[1766069210050,0.002,2949.3,2947.9,3.5609]
[1766069210214,0.10157612,2950.4,2947.2,8.57240777]
[1766069210215,3.38787817,2951.7,2948.3,3.5609]
[1766069210417,0.10157612,2951.3,2949.1,2.1162]
[1766069210625,2.29392851,2951.8,2949.1,2.1162]
[1766069210626,2.76927756,2953.6,2951.1,0.05]
[1766069210801,10.0,2954.0,2952.5,2.1162]
[1766069210802,0.17714927,2953.9,2952.5,2.1162]
[1766069211002,0.10157612,2953.7,2952.5,0.583]
[1766069211235,0.04201157,2953.6,2952.5,0.583]
[1766069211536,0.10157612,2953.5,2952.0,3.5609]
[1766069211710,0.46438023,2953.7,2952.1,0.583]
[1766069211899,0.46438023,2953.7,2952.1,4.1439]
[1766069212100,0.38498503,2953.6,2952.2,2.1162]
[1766069212305,0.10157612,2953.5,2951.6,3.5609]
[1766069212624,0.68457612,2953.7,2951.4,3.5609]
[1766069212824,0.68457612,2953.7,2950.9,0.46438023]
[1766069212825,0.10157612,2953.2,2951.6,2.1162]
[1766069213012,0.10157612,2953.4,2951.1,0.46438023]
[1766069213013,0.56595635,2953.4,2951.4,0.583]
[1766069213335,0.56595635,2953.4,2950.8,5.6771]
[1766069213336,0.46438023,2952.5,2950.8,5.6771]
[1766069213535,0.46438023,2952.5,2950.4,0.46438023]
[1766069213536,0.405504,2952.4,2950.6,3.5609]
[1766069213709,0.405504,2952.2,2950.6,3.5609]
[1766069213904,0.405504,2952.2,2950.2,2.1162]
[1766069213905,0.405504,2951.6,2950.2,2.1162]
[1766069214239,0.405504,2951.4,2949.8,5.6771]
[1766069214412,0.405504,2951.2,2949.8,5.6771]
[1766069214613,0.405504,2951.0,2949.4,2.6992]
[1766069214815,0.405504,2951.0,2947.6,3.39253891]
[1766069214816,0.14358769,2950.9,2949.1,0.79462]
[1766069215038,0.10157612,2951.1,2949.5,5.6771]
[1766069215039,0.405504,2951.1,2949.5,5.6771]
[1766069215350,0.405504,2951.1,2949.7,2.1162]
[1766069215351,0.46438023,2951.1,2949.7,2.1162]
[1766069215637,0.46438023,2951.3,2949.8,4.1439]
[1766069215838,1.78836879,2952.5,2949.8,4.1439]
[1766069215839,0.46438023,2952.1,2950.4,3.5609]
[1766069216014,1.14895635,2952.1,2950.4,3.5609]
[1766069216347,0.10157612,2951.9,2950.1,2.1162]
[1766069216546,0.10157612,2951.9,2950.1,0.583]
[1766069216704,1.13108695,2952.0,2950.4,3.5609]
[1766069217211,0.46438023,2951.5,2950.0,2.1162]
[1766069217544,0.46438023,2951.7,2950.4,3.5609]
[1766069217837,0.46438023,2951.7,2949.9,7.36286963]
[1766069217838,0.04201157,2952.6,2950.5,0.56771]
[1766069218007,1.14895635,2952.7,2950.8,3.5609]
[1766069218207,0.10157612,2952.5,2950.8,6.2601]
[1766069218402,0.10157612,2952.5,2950.9,3.5609]
[1766069218608,0.46438023,2952.2,2950.2,2.1162]
[1766069218903,0.44751557,2952.1,2950.2,2.1162]
[1766069219104,0.46438023,2952.2,2950.3,2.1162]
[1766069219105,0.405504,2952.2,2950.3,2.1162]
[1766069219318,0.46438023,2952.0,2950.3,2.38602]
[1766069219520,0.5063918,2952.0,2950.3,2.1162]
[1766069219741,0.405504,2951.9,2950.2,0.582]
[1766069220039,0.405504,2951.9,2950.4,2.1162]
[1766069220349,0.405504,2951.9,2950.5,0.582]
[1766069220505,0.582,2952.1,2950.8,2.1162]
[1766069220703,0.582,2952.1,2950.5,0.582]
[1766069220704,0.86739839,2953.3,2951.3,3.5609]
[1766069220906,7.35432297,2953.2,2951.7,5.8799]
[1766069221140,0.46438023,2953.1,2951.8,3.6615]
[1766069221345,3.3856988,2953.6,2951.6,3.38798208]
[1766069221514,0.582,2953.3,2951.4,0.582]
[1766069221714,0.582,2953.3,2951.1,0.03388566]
[1766069221914,0.582,2953.3,2951.7,2.2184]
[1766069222140,6.7713976,2953.6,2951.7,3.6615]
[1766069222307,1.82529611,2953.5,2951.8,2.2184]
[1766069222511,0.62401157,2953.4,2952.0,5.8799]
[1766069222747,0.582,2953.4,2952.0,0.46438023]
[1766069223048,0.002,2953.7,2951.9,0.582]
[1766069223049,0.002,2953.7,2952.7,2.2184]
[1766069223266,0.002,2953.7,2952.8,3.6615]
[1766069223414,0.002,2953.7,2952.9,5.8799]
[1766069223620,0.68357612,2953.6,2951.4,2.2184]
[1766069223858,0.405504,2953.5,2951.7,3.6615]
[1766069224069,0.405504,2952.9,2950.3,0.001]
[1766069224268,0.46438023,2953.2,2950.8,2.2184]
[1766069224449,0.582,2953.1,2951.8,2.2184]
[1766069224750,0.002,2953.7,2952.4,2.2184]
[1766069224953,0.405504,2953.6,2952.4,5.8799]
[1766069225258,0.583,2953.7,2952.0,2.2184]
[1766069225259,0.405504,2953.2,2952.0,2.2184]
[1766069225418,0.002,2953.7,2952.5,3.6615]
[1766069225615,0.002,2953.7,2952.1,1.26722023]
[1766069225858,0.581,2954.0,2952.2,0.46438023]
[1766069226156,0.581,2954.0,2952.1,1.26722023]
[1766069226157,0.04201157,2953.9,2952.5,3.6615]
[1766069226320,0.46438023,2953.9,2952.5,5.8799]
[1766069226521,0.405504,2953.6,2952.0,3.6615]
[1766069226721,0.10157612,2953.0,2950.6,3.6615]
[1766069226921,0.405504,2952.8,2950.9,2.2184]
[1766069227253,3.38664066,2952.8,2951.0,0.581]
[1766069227460,0.46438023,2952.7,2950.7,3.6615]
[1766069227769,0.38510209,2952.6,2951.4,3.6615]
[1766069227933,0.581,2952.9,2951.7,3.6615]
[1766069227934,4.43189825,2952.9,2951.7,3.6615]
[1766069228122,4.43189825,2952.9,2951.2,2.68278023]
[1766069228123,0.581,2953.5,2952.0,2.2184]
[1766069228324,3.96689882,2953.5,2952.2,3.6615]
[1766069228553,0.405504,2953.4,2952.2,3.6615]
[1766069228771,3.96681344,2953.5,2952.1,2.2184]
[1766069229051,1.72669365,2955.2,2952.8,3.6615]
[1766069229255,1.72669365,2955.2,2951.9,8.14190402]
[1766069229256,0.10157612,2953.8,2951.5,3.6615]
[1766069229420,0.10157612,2953.1,2951.3,4.2425]
[1766069229622,0.10157612,2953.1,2948.6,1.69766528]
[1766069229623,0.10157612,2952.3,2950.6,0.001]
[1766069229820,0.10157612,2953.6,2951.1,3.6615]
[1766069230022,0.405504,2953.1,2951.4,2.2184]
[1766069230253,1.04538023,2953.5,2951.5,0.03388107]
[1766069230459,0.405504,2953.3,2951.7,3.6615]
[1766069230661,0.10157612,2953.4,2951.5,2.2184]
[1766069230662,0.405504,2953.1,2951.5,2.2184]
[1766069230964,0.405504,2952.6,2950.6,4.2435]
[1766069231171,0.46438023,2952.7,2951.1,3.38845737]
[1766069231454,1.61735771,2953.9,2951.7,3.6615]
[1766069231455,0.405504,2953.0,2951.7,3.6615]
[1766069231655,0.405504,2953.0,2951.8,0.03387763]
[1766069231882,0.405504,2953.0,2951.1,5.8799]
[1766069231883,0.405504,2952.8,2951.1,5.8799]
[1766069232173,0.10157612,2952.9,2951.2,5.91378452]
[1766069232174,0.405504,2952.9,2951.2,5.91378452]
[1766069232365,0.405504,2952.9,2951.2,4.56077298]
[1766069232579,0.405504,2953.0,2951.4,3.5749]
[1766069232734,0.581,2953.1,2951.5,0.46438023]
[1766069233073,0.581,2953.1,2951.4,6.776409]
[1766069233074,6.77331726,2953.7,2952.3,5.7838]
[1766069233275,0.46438023,2953.4,2951.7,5.7838]
[1766069233430,0.405504,2953.2,2951.5,2.2089]
[1766069233629,0.405504,2953.2,2950.6,10.41799527]
[1766069233630,0.62301157,2953.1,2951.8,3.5749]
[1766069233953,0.62301157,2953.1,2951.3,5.7838]
[1766069233954,0.44751557,2953.0,2951.3,5.7838]
[1766069234150,0.405504,2953.0,2951.5,3.5749]
[1766069234359,0.581,2953.1,2951.7,6.77565359]
[1766069234567,0.581,2953.1,2952.0,2.2089]
[1766069234759,0.72360071,2953.3,2952.1,3.5749]
[1766069235067,0.04201157,2953.3,2952.4,3.5749]
[1766069235227,0.002,2953.7,2952.7,3.5749]
[1766069235427,0.46638023,2953.7,2952.2,5.7838]
[1766069235628,0.002,2953.7,2952.4,2.2089]
[1766069235855,0.002,2953.7,2952.7,3.38672536]
[1766069236054,6.76864762,2954.8,2953.2,3.5749]
[1766069236265,0.581,2954.6,2953.5,3.5749]
[1766069236466,3.38621311,2954.9,2953.6,4.1559]
[1766069236767,0.46438023,2954.8,2953.6,4.1559]
[1766069237068,0.84943956,2954.8,2953.6,4.1559]
[1766069237239,0.84943956,2954.8,2953.6,2.7899]
[1766069237567,0.002,2954.9,2953.9,5.7838]
[1766069237935,0.002,2954.9,2954.0,0.58]
[1766069238160,0.002,2954.9,2954.1,3.5749]
[1766069238362,0.002,2954.9,2953.9,2.2089]
[1766069238568,0.002,2954.9,2953.2,3.38611797]
[1766069238569,0.46438023,2954.8,2953.2,4.03928023]
[1766069238811,0.405504,2954.6,2953.3,3.5749]
[1766069239010,0.405504,2954.4,2952.5,5.7838]
[1766069239156,0.405504,2954.2,2952.2,2.2089]
[1766069239496,0.405504,2954.2,2952.1,3.3873188]
[1766069239497,0.405504,2953.9,2952.8,3.5749]
[1766069239702,3.38494824,2954.3,2952.8,3.5749]
[1766069239703,0.86988423,2954.5,2953.1,2.2089]
[1766069239857,0.04201157,2954.4,2953.2,5.7838]
[1766069240058,0.04201157,2954.4,2953.2,2.2089]
[1766069240267,0.04121157,2954.4,2953.2,2.2089]
[1766069240654,6.76875981,2954.8,2953.4,5.7838]
[1766069240899,0.67707598,2954.7,2953.4,5.7838]
[1766069241092,0.002,2954.9,2953.8,2.2089]
[1766069241261,0.002,2954.9,2953.5,0.58]
[1766069241262,0.002,2954.9,2953.9,3.96525246]
[1766069241457,0.002,2954.9,2954.0,5.7838]
[1766069241934,0.002,2954.9,2954.1,3.5749]
[1766069242256,0.002,2954.9,2953.2,3.5749]
[1766069242589,0.002,2954.9,2953.3,3.5749]
[1766069242768,0.002,2954.9,2952.4,3.3870097]
[1766069242769,0.002,2954.9,2952.7,2.2089]
[1766069243091,0.002,2954.9,2953.8,3.5749]
[1766069243292,0.002,2954.9,2953.8,5.7838]
[1766069243481,0.002,2954.9,2953.9,3.5749]
[1766069243792,0.405504,2954.8,2952.6,2.2089]
[1766069244086,0.04321157,2954.9,2952.2,2.2089]
[1766069244087,0.86988423,2954.4,2952.2,2.2089]
[1766069244292,0.86988423,2954.4,2951.4,3.38816283]
[1766069244293,0.405504,2953.9,2951.5,2.2089]
[1766069244458,0.86988423,2953.4,2950.6,0.001]
[1766069244659,0.405504,2952.9,2950.8,5.5977811]
[1766069244859,0.405504,2952.7,2951.2,3.5749]
[1766069245091,0.405504,2952.7,2951.1,2.2089]
[1766069245092,0.405504,2952.7,2951.4,3.5749]
[1766069245297,0.405504,2952.3,2950.8,4.55016811]
[1766069245595,0.86988423,2953.6,2951.4,2.2089]
[1766069245774,0.405504,2952.8,2951.4,6.3628]
[1766069245961,0.579,2952.9,2951.7,3.5749]
[1766069246167,0.579,2952.9,2951.7,5.7838]
[1766069246365,0.405504,2952.8,2951.6,5.7838]
[1766069246601,0.405504,2952.8,2950.8,0.97526811]
[1766069246902,0.10157612,2952.1,2949.5,3.39136203]
[1766069247063,0.46438023,2951.3,2949.5,0.001]
[1766069247263,0.10157612,2951.9,2949.5,0.001]
[1766069247264,0.405504,2950.8,2949.5,0.001]
[1766069247464,0.405504,2950.6,2949.5,0.001]
[1766069247694,0.405504,2950.4,2949.5,0.001]
[1766069248013,0.46438023,2950.9,2949.5,0.001]
[1766069248297,0.405504,2950.5,2949.5,5.7848]
[1766069248462,0.3853062,2950.8,2949.6,3.5749]
[1766069248663,0.405504,2950.6,2949.5,0.001]
[1766069249097,0.5055918,2951.0,2949.5,0.001]
[1766069249398,0.405504,2950.6,2949.1,0.001]
[1766069249623,0.46438023,2950.7,2946.8,2.35033146]
[1766069249624,0.405504,2949.1,2946.8,2.35033146]
[1766069249910,0.405504,2949.1,2945.4,5.96571774]
[1766069249911,0.405504,2948.2,2947.0,5.7838]
[1766069250069,0.04121157,2948.1,2947.0,5.7838]
[1766069250405,0.405504,2947.9,2946.4,5.7838]
[1766069250562,0.405504,2948.4,2946.5,3.5749]
[1766069250787,0.10157612,2947.6,2945.6,2.2089]
[1766069251009,0.986504,2947.5,2946.7,0.001]
[1766069251210,0.986504,2947.5,2945.8,5.7838]
[1766069251211,0.405504,2947.3,2945.8,5.7838]
[1766069251412,3.3919172,2948.2,2946.0,3.5749]
[1766069251610,3.3919172,2948.2,2945.8,3.39466358]
[1766069251611,0.405504,2947.8,2946.1,0.35749]
[1766069251828,0.44671557,2947.8,2945.9,3.5749]
[1766069252029,0.405504,2947.6,2945.9,3.5749]
[1766069252191,0.405504,2947.4,2945.9,3.5749]
[1766069252391,0.405504,2947.2,2945.9,3.5749]
[1766069252590,0.04121157,2947.3,2946.2,3.5749]
[1766069252591,0.581,2947.3,2946.2,3.5749]
[1766069252824,9.69359088,2949.2,2946.7,2.67328023]
[1766069253092,0.581,2948.7,2946.8,5.7838]
[1766069253334,13.08434091,2949.2,2947.4,3.5749]
[1766069253629,0.62221157,2949.1,2947.4,2.2089]
[1766069253830,0.04121157,2949.1,2947.4,5.7838]
[1766069254002,1.89355525,2949.0,2947.5,6.36218]
[1766069254205,1.35376682,2949.0,2947.5,5.7838]
[1766069254394,0.58,2948.9,2947.5,5.7838]
[1766069254591,9.69359088,2949.7,2947.7,2.2089]
[1766069254834,9.69359088,2949.7,2947.8,5.7838]
[1766069254835,7.40179197,2949.6,2947.8,5.7838]
[1766069255019,0.46438023,2949.5,2947.4,0.46438023]
[1766069255330,0.46438023,2949.2,2947.4,9.85947805]
[1766069255490,0.46438023,2949.2,2947.4,4.25781802]
[1766069255491,0.5055918,2949.2,2947.4,4.25781802]
[1766069255826,0.44671557,2949.1,2947.4,4.25781802]
[1766069256025,0.44671557,2949.1,2947.4,7.65061802]
[1766069256232,3.3898305,2950.0,2947.9,3.5749]
[1766069256525,1.81393394,2949.9,2948.1,5.7838]
[1766069256826,1.81393394,2949.9,2948.0,0.35749]
[1766069256827,0.405504,2949.8,2948.0,2.56639]
[1766069257037,0.405504,2949.6,2948.0,6.14129]
[1766069257198,0.44671557,2949.6,2948.0,6.14129]
[1766069257529,0.86988423,2949.4,2948.1,5.7838]
[1766069257701,0.86988423,2949.4,2948.0,0.35749]
[1766069257702,0.405504,2949.2,2948.0,0.35749]
[1766069257906,0.58,2949.2,2948.2,5.7838]
[1766069258101,0.405504,2949.8,2948.2,5.7838]
[1766069258302,3.38994542,2949.9,2948.3,3.58732191]
[1766069258514,3.38994542,2949.9,2948.4,2.2089]
[1766069258515,6.77990314,2949.9,2948.4,2.2089]
[1766069258825,0.405504,2949.7,2948.2,4.1549]
[1766069258995,0.405504,2949.7,2948.3,3.5749]
[1766069259189,3.38994542,2949.9,2948.5,5.7838]
[1766069259190,0.46438023,2949.9,2948.5,5.7838]
[1766069259424,0.10157612,2950.5,2948.2,4.94755574]
[1766069259425,0.46438023,2949.7,2948.2,4.94755574]
[1766069259613,0.44671557,2949.6,2948.2,5.1305797]
[1766069259805,0.405504,2949.6,2948.2,5.1305797]
[1766069260001,1.22850593,2949.6,2948.2,5.1305797]
[1766069260206,0.58,2949.6,2948.6,5.7838]
[1766069260522,0.58,2949.5,2948.6,3.5749]
[1766069260697,0.58,2949.7,2948.6,5.7838]
[1766069261113,0.04121157,2950.3,2948.8,3.5749]
[1766069261314,6.7785121,2950.5,2948.8,3.5749]
[1766069261625,0.86988423,2950.0,2948.7,2.2089]
[1766069261831,0.405504,2949.8,2948.0,3.5759]
[1766069262014,0.405504,2949.6,2948.1,3.39194401]
[1766069262213,0.405504,2949.4,2948.1,3.39199733]
[1766069262436,0.579,2949.5,2948.4,3.6632]
[1766069262605,0.579,2949.5,2948.2,0.579]
[1766069262807,0.405504,2949.8,2948.4,2.1586]
[1766069263016,0.405504,2949.6,2948.0,3.39306398]
[1766069263315,0.405504,2949.4,2948.0,0.001]
[1766069263533,0.86988423,2949.2,2948.0,0.001]
[1766069263697,0.405504,2949.0,2947.2,6.4008]
[1766069263898,0.405504,2948.8,2947.3,3.39291563]
[1766069264111,0.10157612,2949.1,2947.4,3.13360017]
[1766069264112,0.405504,2948.6,2947.4,3.13360017]
[1766069264332,0.579,2948.7,2947.4,5.55137362]
[1766069264509,0.579,2948.7,2947.4,2.1586]
[1766069264702,0.44671557,2948.6,2946.7,3.39362656]
[1766069264939,0.405504,2948.6,2946.9,2.1586]
[1766069265226,0.405504,2948.6,2946.7,0.578]
[1766069265227,0.04121157,2948.5,2946.7,0.578]
[1766069265527,0.04121157,2948.5,2946.6,3.39467418]
[1766069265528,0.46438023,2948.4,2946.9,2.1586]
[1766069265732,0.578,2948.7,2947.1,2.1586]
[1766069266228,0.61921157,2948.6,2947.2,3.6632]
[1766069266435,0.61921157,2948.6,2947.2,5.8218]
[1766069266636,0.10157612,2948.2,2946.8,0.001]
[1766069266834,0.10157612,2948.2,2946.6,0.001]
[1766069266835,0.10157612,2948.0,2946.6,0.001]
[1766069267136,0.405504,2947.8,2946.6,0.001]
[1766069267527,0.86988423,2947.6,2946.0,3.6632]
[1766069267727,0.405504,2947.4,2945.9,5.8218]
[1766069268020,0.405504,2947.2,2945.7,0.578]
[1766069268237,0.405504,2947.0,2945.6,0.001]
[1766069268541,0.405504,2946.8,2945.5,0.001]
[1766069268707,0.405504,2946.6,2945.5,0.001]
[1766069269348,0.405504,2946.4,2944.9,3.39563455]
[1766069269546,0.86988423,2946.2,2944.9,0.7833925]
[1766069269710,0.86988423,2946.2,2944.6,3.6632]
[1766069269711,0.405504,2946.0,2944.6,3.6632]
[1766069269909,0.578,2945.9,2944.8,5.8218]
[1766069270112,0.04121157,2945.8,2944.8,5.8218]
[1766069270323,0.04121157,2945.8,2944.8,9.21760647]
[1766069270513,0.578,2945.9,2944.9,3.6632]
[1766069270720,0.578,2945.9,2945.1,3.6632]
[1766069270721,0.61921157,2945.9,2945.1,3.6632]
[1766069270930,0.04121157,2946.3,2945.1,3.6632]
[1766069271101,0.578,2946.3,2945.3,5.8218]
[1766069271298,0.578,2946.3,2944.8,8.05296774]
[1766069271498,0.578,2946.3,2945.3,2.1586]
[1766069271744,0.10157612,2947.9,2945.6,3.6632]
[1766069271913,0.14278769,2947.8,2945.9,3.6632]
[1766069272114,0.61821157,2947.8,2945.9,3.6632]
[1766069272435,0.98967431,2948.2,2946.4,3.6632]
[1766069272745,0.577,2947.9,2946.6,3.6632]
[1766069273247,0.04121157,2947.8,2946.6,3.6632]
[1766069273403,0.04121157,2947.8,2946.3,3.39408749]
[1766069273404,3.3923604,2947.8,2946.3,3.39408749]
[1766069273601,6.7847208,2947.8,2946.2,4.2402]
[1766069273802,0.86988423,2947.7,2946.2,0.577]
[1766069274005,0.405504,2947.5,2946.2,0.577]
[1766069274241,0.405504,2947.3,2946.3,5.8218]
[1766069274449,0.405504,2947.1,2945.8,5.8218]
[1766069274734,0.405504,2947.1,2945.8,3.6632]
[1766069275146,0.405504,2946.9,2945.6,1.04138023]
[1766069275313,0.405504,2946.7,2945.5,0.001]
[1766069275505,0.405504,2946.7,2945.5,2.1596]
[1766069275727,0.576,2946.8,2945.9,3.6632]
[1766069275928,0.44671557,2946.7,2945.5,0.001]
[1766069276160,0.405504,2946.7,2945.5,0.001]
[1766069276345,0.577,2946.7,2945.5,5.8228]
[1766069276550,0.61821157,2946.7,2945.5,5.8228]
[1766069276744,0.577,2946.7,2945.6,5.8218]
[1766069276935,0.405504,2946.6,2945.5,0.001]
[1766069277131,0.405504,2946.4,2945.5,0.001]
[1766069277461,0.405504,2946.2,2944.9,2.1586]
[1766069277636,1.44588423,2946.8,2945.4,5.8218]
[1766069277826,0.981504,2946.8,2945.7,5.8218]
[1766069278034,0.61721157,2946.8,2945.3,2.1586]
[1766069278364,3.39259058,2947.6,2945.8,3.6632]
[1766069278668,3.39259058,2947.6,2945.0,13.79820292]
[1766069278669,0.576,2947.5,2945.9,0.576]
[1766069278971,0.576,2947.5,2946.4,3.6632]
[1766069279263,0.576,2947.5,2946.4,0.36632]
[1766069279561,0.576,2947.5,2946.5,2.1586]
[1766069279764,0.002,2947.8,2946.7,3.6632]
[1766069279942,9.69359088,2949.5,2947.4,3.6632]
[1766069280140,0.61721157,2949.4,2947.9,5.8218]
[1766069280469,0.576,2949.4,2947.6,4.2392]
[1766069280672,0.576,2949.4,2947.6,6.2739]
[1766069280673,0.46438023,2948.9,2947.6,6.2739]
[1766069280836,0.002,2949.0,2947.6,2.6107]
[1766069281179,3.39300646,2949.0,2946.6,3.4807]
[1766069281336,9.73480245,2948.9,2946.8,3.4807]
[1766069281534,0.46438023,2948.6,2946.7,0.576]
[1766069281733,0.46438023,2948.6,2946.5,0.46438023]
[1766069281734,1.02271557,2948.5,2946.5,5.5154]
[1766069281936,0.405504,2947.8,2945.8,3.4807]
[1766069282137,0.10157612,2948.1,2946.2,3.39420203]
[1766069282138,0.405504,2947.6,2946.2,3.39420203]
[1766069282473,0.405504,2947.4,2946.2,3.4807]
[1766069282771,0.405504,2947.2,2945.6,3.4807]
[1766069283067,0.46438023,2947.6,2945.7,6.87545511]
[1766069283068,0.44671557,2947.5,2945.7,6.87545511]
[1766069283233,0.44671557,2947.5,2945.7,3.4807]
[1766069283435,0.405504,2947.4,2946.2,3.4807]
[1766069283751,0.86988423,2947.4,2946.0,5.5154]
[1766069284055,0.97146035,2947.0,2944.7,0.576]
[1766069284266,0.405504,2946.8,2945.5,0.001]
[1766069284566,0.405504,2946.6,2945.5,0.001]
[1766069284731,0.405504,2946.9,2945.5,3.4817]
[1766069285080,0.61721157,2947.3,2945.9,3.4807]
[1766069285756,0.46438023,2947.1,2945.9,3.4807]
[1766069285968,0.576,2947.3,2946.3,3.4807]
[1766069286135,0.576,2947.3,2946.5,5.5154]
[1766069286483,0.04321157,2947.8,2945.9,6.78899806]
[1766069286484,0.002,2947.8,2946.9,3.4807]
[1766069286692,3.39063814,2949.3,2947.6,3.4807]
[1766069286835,3.39093161,2949.1,2947.7,5.5154]
[1766069287035,3.39087471,2949.1,2947.8,3.4807]
[1766069287283,0.46438023,2948.9,2947.1,3.4807]
[1766069287483,0.04121157,2948.8,2947.0,0.55154]
[1766069287775,0.04121157,2948.9,2947.3,3.4807]
[1766069288077,0.405504,2948.7,2946.8,0.576]
[1766069288282,0.46438023,2948.8,2946.0,0.576]
[1766069288283,0.86988423,2948.3,2946.0,0.576]
[1766069288497,9.69359088,2948.4,2944.3,6.41853461]
[1766069288498,0.86988423,2947.8,2945.6,3.4807]
[1766069288669,2.25677871,2948.2,2945.6,3.4807]
[1766069288670,9.69359088,2948.5,2945.7,0.44304178]
[1766069288877,0.981504,2948.4,2946.6,5.5154]
[1766069289191,0.981504,2948.4,2945.7,0.46438023]
[1766069289192,0.405504,2948.2,2946.3,0.576]
[1766069289498,0.405504,2948.0,2946.3,0.576]
[1766069289785,0.405504,2948.0,2946.1,8.90963558]
[1766069289786,7.1894248,2947.8,2946.1,5.5154]
[1766069289944,1.04038023,2947.7,2946.1,5.5154]
[1766069290143,0.7825101,2947.6,2946.1,2.0347]
[1766069290586,0.82372167,2947.6,2945.9,3.4807]
[1766069290801,0.7825101,2947.6,2945.9,5.5154]
[1766069290971,0.82372167,2947.6,2945.9,3.4807]
[1766069291513,0.46438023,2947.5,2945.8,0.576]
[1766069291676,0.56595635,2946.9,2944.8,8.91115201]
[1766069291878,0.405504,2946.6,2944.8,3.39575201]
[1766069292177,0.405504,2946.6,2945.4,0.001]
[1766069292404,0.04121157,2946.5,2945.5,3.4807]
[1766069292583,0.981504,2946.6,2945.5,3.4807]
[1766069292777,0.405504,2946.4,2945.4,0.001]
[1766069293002,0.405504,2946.5,2945.5,3.5228]
[1766069293174,0.405504,2946.5,2945.4,0.001]
[1766069293712,0.576,2946.6,2945.7,5.6457]
[1766069293866,0.576,2946.6,2945.5,2.1229]
[1766069294069,0.576,2946.6,2945.5,9.04070461]
[1766069294298,0.576,2946.6,2945.5,2.1229]
[1766069294607,0.405504,2946.5,2945.4,0.001]
[1766069294816,0.405504,2946.5,2944.8,3.5228]
[1766069294982,0.04121157,2946.4,2944.8,3.5228]
[1766069295520,0.04121157,2946.4,2944.4,0.576]
[1766069295521,0.86988423,2946.2,2944.4,3.39617573]
[1766069295672,0.405504,2946.5,2944.3,0.001]
[1766069295673,0.405504,2946.0,2944.8,3.5228]
[1766069295871,0.576,2945.9,2945.0,5.6457]
[1766069296067,0.576,2945.9,2944.3,0.03496393]
[1766069296068,0.405504,2945.7,2944.3,0.001]
[1766069296282,0.405504,2945.5,2944.3,0.001]
[1766069296604,0.576,2945.4,2944.5,9.0417738]
[1766069296915,0.576,2945.4,2944.6,3.5228]
[1766069297067,0.576,2945.4,2944.3,0.001]
[1766069297667,0.576,2945.4,2944.3,0.61210802]
[1766069297868,0.576,2945.4,2944.5,5.6457]
[1766069298270,0.576,2945.4,2944.5,3.5228]
[1766069298606,0.576,2945.4,2943.1,0.001]
[1766069298607,0.86988423,2944.8,2943.1,0.001]
[1766069298769,0.86988423,2944.8,2941.8,8.10015792]
[1766069298770,0.86988423,2944.3,2942.5,3.39836844]
[1766069298967,0.405504,2944.1,2942.5,0.69211684]
[1766069299200,0.405504,2944.1,2942.3,3.5228]
[1766069299201,0.405504,2943.9,2942.3,3.5228]
[1766069299399,8.10015792,2944.4,2942.0,0.576]
[1766069299400,0.10157612,2945.3,2943.1,2.1229]
[1766069299600,0.86988423,2945.0,2943.2,3.5228]
[1766069299782,0.405504,2945.0,2943.4,5.6457]
[1766069300101,0.405504,2945.0,2943.3,0.576]
[1766069300102,0.405504,2945.1,2943.8,3.5228]
[1766069300303,0.84318212,2945.1,2943.8,3.5228]
[1766069300806,0.576,2945.2,2943.8,0.576]
[1766069301006,0.576,2945.2,2943.9,0.576]
[1766069301204,0.576,2945.2,2944.1,5.6457]